bitfinex-derivatives/quotes_BTCF0:USTF0_20210105
["timestamp","ask_amount","ask_price","bid_price","bid_amount"]
[1609870256988,0.54939933,33029.0,32966.0,0.21092]
[1609870257200,0.54939933,33029.0,32966.0,0.12062]
[1609870257392,0.01059671,33029.0,32966.0,0.12062]
[1609870257800,0.10049671,33029.0,32961.0,4.7512]
[1609870257992,0.63936501,33029.0,32961.0,4.7512]
[1609870258192,0.63936501,33029.0,32988.0,0.13632608]
[1609870258994,0.53886189,33027.0,32988.0,0.13632608]
[1609870260198,0.13632608,33008.0,33004.0,0.13632608]
[1609870261902,0.53886189,33027.0,33004.0,0.13632608]
[1609870262301,0.01670545,33005.0,33004.0,0.13632608]
[1609870262501,0.53886189,33027.0,33004.0,0.13632608]
[1609870263100,0.53886189,33027.0,33004.0,0.22722608]
[1609870264103,0.01059671,33029.0,33023.0,0.13632608]
[1609870266103,0.01059671,33029.0,33028.0,0.13632608]
[1609870268105,0.14692279,33029.0,32978.0,0.14273]
[1609870268304,0.27892279,33029.0,33002.0,5.0812]
[1609870268504,0.27892279,33029.0,33002.0,4.9899]
[1609870269104,0.27892279,33029.0,32978.0,0.14273]
[1609870269305,0.27892279,33029.0,32977.0,1.94398623]
[1609870269506,0.27892279,33029.0,32981.0,1.95245202]
[1609870269907,0.3741,33028.0,32981.0,1.95245202]
[1609870270105,0.13632608,32982.0,32981.0,2.0887781]
[1609870270306,0.2844,33028.0,32981.0,2.1797781]
[1609870270507,0.2844,33028.0,32981.0,2.0887781]
[1609870271606,0.2844,33028.0,32982.0,0.092]
[1609870272107,0.2844,33028.0,33005.0,0.13632608]
[1609870273410,0.83291243,33028.0,33005.0,0.13632608]
[1609870274209,0.83291243,33028.0,33014.0,0.13632608]
[1609870274612,0.2844,33028.0,33014.0,0.13632608]
[1609870275215,0.2844,33028.0,32998.0,4.3451]
[1609870276216,0.2844,33028.0,33009.0,0.13632608]
[1609870276617,0.14259671,33029.0,33009.0,0.13632608]
[1609870277016,0.14259671,33029.0,33009.0,0.66942608]
[1609870277618,0.14259671,33029.0,33010.0,0.0914]
[1609870277818,0.5481214,33028.0,33013.0,4.9828]
[1609870278220,0.5481214,33028.0,33027.0,0.13632608]
[1609870278622,0.27892279,33029.0,33027.0,0.13632608]
[1609870278623,0.14259671,33029.0,33027.0,0.13632608]
[1609870280324,0.14259671,33029.0,33010.0,0.0914]
[1609870280528,0.14259671,33029.0,32985.0,1.97393681]
[1609870281328,0.14259671,33029.0,32983.0,4.8479]
[1609870282326,0.14259671,33029.0,33012.0,0.13632608]
[1609870284228,0.14259671,33029.0,33026.0,0.13632608]
[1609870286329,0.13632608,33027.0,33005.0,4.083]
[1609870288232,0.13632608,33027.0,33026.0,0.13632608]
[1609870288632,0.14259671,33029.0,33026.0,0.13632608]
[1609870291033,0.14259671,33029.0,33026.0,0.22762608]
[1609870291233,0.14259671,33029.0,33026.0,0.13632608]
[1609870292635,0.14259671,33029.0,33027.0,0.0905]
[1609870293536,0.14259671,33029.0,33026.0,0.13632608]
[1609870294437,0.14259671,33029.0,33027.0,0.0907]
[1609870295039,0.14259671,33029.0,33026.0,0.13632608]
[1609870296338,0.13632608,33032.0,33026.0,0.13632608]
[1609870296539,0.14575,33029.0,33027.0,0.0908]
[1609870299342,0.02355,33029.0,33027.0,0.0908]
[1609870301445,0.13632608,33036.0,33027.0,0.0908]
[1609870302244,0.13632608,33028.0,33027.0,0.0908]
[1609870303046,0.13632608,33028.0,33018.0,0.0909]
[1609870303450,0.13632608,33028.0,33011.0,3.5522]
[1609870303650,0.13632608,33028.0,32987.0,1.9764103]
[1609870303848,0.13632608,33028.0,32991.0,3.9667]
[1609870304248,0.13632608,33004.0,33001.0,0.13632608]
[1609870304647,0.27557608,33004.0,33001.0,0.13632608]
[1609870305049,0.27557608,33004.0,32981.0,0.12531]
[1609870306049,0.27557608,33004.0,32978.0,4.404]
[1609870306251,0.13632608,32997.0,32994.0,0.13632608]
[1609870306655,0.22837608,32997.0,32994.0,0.13632608]
[1609870308552,0.09205,32997.0,32994.0,0.13632608]
[1609870308752,0.13925,33004.0,32994.0,0.13632608]
[1609870309152,0.13925,33004.0,32995.0,0.523]
[1609870309353,0.13925,33004.0,32996.0,0.0906]
[1609870309751,0.13015,33004.0,32996.0,0.0906]
[1609870309953,0.09702,33030.0,32996.0,0.0906]
[1609870310151,4.52627816,33035.0,32996.0,0.0906]
[1609870310353,0.13632608,33013.0,33010.0,0.13632608]
[1609870310553,0.09707,33013.0,33010.0,0.13632608]
[1609870310753,0.11684,33015.0,33010.0,0.13632608]
[1609870311154,0.07904,33015.0,33010.0,0.13632608]
[1609870311354,4e-05,33015.0,33010.0,0.13632608]
[1609870311554,4e-05,33015.0,33011.0,0.0899]
[1609870311955,4e-05,33015.0,33010.0,0.13632608]
[1609870312154,4e-05,33015.0,33003.0,0.0908]
[1609870312355,4e-05,33015.0,33010.0,0.13632608]
[1609870314157,4e-05,33015.0,32994.0,3.8613]
[1609870314358,4e-05,33015.0,33005.0,0.13632608]
[1609870315758,0.55336238,33026.0,33005.0,0.13632608]
[1609870316360,0.28261608,33006.0,33001.0,0.13632608]
[1609870317259,0.14629,33006.0,33001.0,0.13632608]
[1609870317460,0.55336238,33026.0,33001.0,0.13632608]
[1609870317861,0.55336238,33026.0,33006.0,3.5032]
[1609870318061,0.55336238,33026.0,33007.0,0.0914]
[1609870318463,0.68968846,33026.0,33024.0,0.13632608]
[1609870318663,0.68968846,33026.0,33010.0,0.091]
[1609870318863,0.80889417,33026.0,33010.0,0.091]
[1609870319567,0.67256809,33026.0,33010.0,0.091]
[1609870319967,0.10059,33026.0,33010.0,0.091]
[1609870320365,0.10059,33026.0,33025.0,0.13632608]
[1609870320965,0.10059,33026.0,33014.0,0.0911]
[1609870321165,0.10059,33026.0,33010.0,0.091]
[1609870321365,0.10059,33026.0,33007.0,0.0914]
[1609870322468,0.13632608,33025.0,33023.0,0.13632608]
[1609870322667,0.13632608,33025.0,33007.0,0.0914]
[1609870323470,0.13632608,33025.0,32995.0,6.42405266]
[1609870323871,0.13632608,33025.0,32995.0,2.01545266]
[1609870324071,0.13632608,33025.0,32992.0,2.02317208]
[1609870324471,0.10059,33026.0,32997.0,0.13632608]
[1609870324675,0.01864768,33026.0,32997.0,0.13632608]
[1609870325272,0.0915,33025.0,32997.0,0.13632608]
[1609870325470,0.23255,33025.0,32997.0,0.13632608]
[1609870325670,0.14105,33025.0,32997.0,0.13632608]
[1609870326070,0.14105,33025.0,32997.0,0.22702608]
[1609870326471,0.14105,33025.0,33004.0,0.13632608]
[1609870326671,0.01864642,33019.0,33004.0,0.13632608]
[1609870327474,0.15969515,33025.0,33004.0,0.13632608]
[1609870328171,0.15969515,33025.0,33004.0,0.22652608]
[1609870328371,0.15969515,33025.0,33024.0,0.13632608]
[1609870328571,0.15969515,33025.0,33004.0,0.0902]
[1609870328772,0.14105,33025.0,33004.0,0.0902]
[1609870329571,0.14105,33025.0,33004.0,0.6071]
[1609870330472,0.14105,33025.0,33024.0,0.13632608]
[1609870330672,0.13632608,33026.0,33024.0,0.13632608]
[1609870333173,0.13632608,33026.0,33006.0,0.0919]
[1609870333475,0.23154608,33026.0,33006.0,0.0919]
[1609870334473,0.09522,33026.0,33015.0,0.13632608]
[1609870334673,0.09522,33026.0,32997.0,4.9841]
[1609870336474,0.09522,33026.0,33022.0,0.13632608]
[1609870336674,0.09522,33026.0,33023.0,0.0899]
[1609870338075,0.09522,33026.0,33024.0,0.7227]
[1609870338275,0.01864111,33032.0,33023.0,0.0899]
[1609870338475,0.01864111,33032.0,33031.0,0.13632608]
[1609870338675,0.55388094,33033.0,33031.0,0.13632608]
[1609870339079,0.69076893,33042.0,33031.0,0.13632608]
[1609870339576,0.69076893,33042.0,33031.0,0.22682608]
[1609870339777,0.13632608,33042.0,33031.0,0.22682608]
[1609870340378,0.13632608,33042.0,33041.0,0.13632608]
[1609870341479,0.13632608,33042.0,33041.0,0.22792608]
[1609870342282,0.5544078,33050.0,33041.0,0.22792608]
[1609870342481,0.5544078,33050.0,33048.0,0.13632608]
[1609870343682,0.5544078,33050.0,33049.0,0.0903]
[1609870343882,0.5544078,33050.0,33048.0,0.13632608]
[1609870344082,0.6933278,33050.0,33048.0,0.13632608]
[1609870344482,0.13632608,33049.0,33048.0,0.13632608]
[1609870344783,0.13632608,33049.0,33048.0,0.22632608]
[1609870345184,0.13632608,33049.0,33048.0,0.13632608]
[1609870345385,0.13632608,33049.0,33036.0,0.0916]
[1609870345585,0.22642608,33049.0,33015.0,0.10329]
[1609870345784,0.13632608,33049.0,33015.0,0.10329]
[1609870346586,0.6933278,33050.0,33042.0,0.13632608]
[1609870347586,0.13892,33050.0,33042.0,0.13632608]
[1609870348485,0.13632608,33043.0,33042.0,0.13632608]
[1609870348886,0.28126641,33057.0,33042.0,0.13632608]
[1609870349085,0.28126641,33057.0,33042.0,0.25620608]
[1609870349486,0.18976641,33057.0,33042.0,1.75620608]
[1609870350086,0.18976641,33057.0,33042.0,0.25620608]
[1609870350486,0.07868641,33057.0,33056.0,0.13632608]
[1609870351688,0.07868641,33057.0,33056.0,0.22632608]
[1609870352590,0.13632608,33073.0,33056.0,0.22632608]
[1609870354494,0.13632608,33073.0,33072.0,0.13632608]
[1609870354892,0.2703,33092.0,33072.0,0.13632608]
[1609870355493,0.80496142,33101.0,33072.0,0.13632608]
[1609870355695,0.80488447,33102.0,33072.0,0.13632608]
[1609870355894,9.671e-05,33083.0,33072.0,0.13632608]
[1609870356094,9.671e-05,33083.0,33072.0,0.28305608]
[1609870356495,9.671e-05,33083.0,33082.0,0.13632608]
[1609870357694,9.671e-05,33083.0,33082.0,0.22752608]
[1609870358497,9.671e-05,33083.0,33082.0,0.13632608]
[1609870359796,9.671e-05,33083.0,33082.0,0.22572608]
[1609870359998,9.671e-05,33083.0,33082.0,0.13632608]
[1609870362400,0.80034516,33122.0,33082.0,0.13632608]
[1609870362599,0.13632608,33104.0,33098.0,0.13632608]
[1609870363697,0.13632608,33104.0,33098.0,0.22552608]
[1609870364998,0.13632608,33104.0,33098.0,0.13632608]
[1609870365602,0.13632608,33104.0,33088.0,0.0893]
[1609870365802,0.20116,33099.0,33088.0,0.0893]
[1609870366601,0.33748608,33099.0,33098.0,0.13632608]
[1609870366801,0.33748608,33099.0,33088.0,0.0893]
[1609870367002,0.33748608,33099.0,33084.0,0.0895]
[1609870367803,0.20116,33099.0,33084.0,0.0895]
[1609870368505,0.20116,33099.0,33098.0,0.13632608]
[1609870368709,0.20116,33099.0,33098.0,0.22652608]
[1609870368905,0.20116,33099.0,33098.0,0.13632608]
[1609870370512,0.1,33099.0,33098.0,0.13632608]
[1609870370711,0.1,33099.0,33098.0,0.28294608]
[1609870371111,0.1,33099.0,33098.0,0.37304608]
[1609870371311,0.1,33099.0,33098.0,0.28294608]
[1609870372912,0.13632608,33109.0,33098.0,0.28294608]
[1609870374515,0.13632608,33109.0,33098.0,0.14662]
[1609870375620,0.13632608,33109.0,33089.0,0.11668]
[1609870375824,0.13632608,33109.0,33064.0,4.5116]
[1609870376016,0.13632608,33109.0,33081.0,0.14632]
[1609870376217,0.13632608,33109.0,33064.0,4.5116]
[1609870376417,0.13632608,33109.0,33066.0,0.01071221]
[1609870376616,0.13632608,33083.0,33075.0,0.13632608]
[1609870376816,0.13632608,33083.0,33066.0,0.01071221]
[1609870377220,0.28576608,33083.0,33066.0,0.01071221]
[1609870378521,0.13632608,33067.0,33066.0,0.01071221]
[1609870378920,0.12373,33076.0,33066.0,0.01071221]
[1609870379820,0.12373,33076.0,33066.0,0.13233221]
[1609870380020,0.11262,33090.0,33066.0,0.13233221]
[1609870380219,0.11262,33090.0,33067.0,0.0894]
[1609870380620,0.13632608,33106.0,33089.0,0.13632608]
[1609870382022,0.13632608,33106.0,33089.0,0.24751608]
[1609870382223,0.13632608,33106.0,33090.0,0.0908]
[1609870382422,0.24402,33113.0,33090.0,0.0908]
[1609870382621,0.24402,33113.0,33111.0,0.13632608]
[1609870384324,0.24402,33113.0,33097.0,0.09915]
[1609870384524,0.24402,33113.0,33104.0,0.13632608]
[1609870385326,0.24402,33113.0,33089.0,0.11119]
[1609870385825,0.24402,33113.0,33089.0,0.20079]
[1609870386226,0.24402,33113.0,33089.0,0.11119]
[1609870386625,0.24402,33113.0,33099.0,0.13632608]
[1609870388628,0.24402,33113.0,33109.0,0.13632608]
[1609870389028,0.24402,33113.0,33106.0,0.09372]
[1609870390528,0.13632608,33107.0,33106.0,0.09372]
[1609870391028,0.13632608,33107.0,33099.0,0.13632608]
[1609870391629,0.14289,33121.0,33100.0,0.0902]
[1609870391829,0.14289,33121.0,33100.0,0.6304]
[1609870392228,0.01059671,33137.0,33100.0,0.6304]
[1609870392429,0.01059671,33137.0,33100.0,0.0902]
[1609870392629,0.01059671,33137.0,33115.0,0.13632608]
[1609870392828,5.545e-05,33116.0,33115.0,0.23115608]
[1609870393729,5.545e-05,33116.0,33115.0,0.32105608]
[1609870394329,5.545e-05,33116.0,33115.0,0.23115608]
[1609870395231,5.545e-05,33116.0,33115.0,0.32265608]
[1609870396933,5.545e-05,33116.0,33115.0,0.23115608]
[1609870397534,5.545e-05,33116.0,33115.0,0.74725608]
[1609870398035,5.545e-05,33116.0,33115.0,0.83885608]
[1609870401234,5.545e-05,33116.0,33115.0,0.74725608]
[1609870402035,5.545e-05,33116.0,33115.0,0.23115608]
[1609870402734,0.13638153,33116.0,33115.0,0.13632608]
[1609870402935,0.13638153,33116.0,33100.0,0.4]
[1609870404738,0.13632608,33101.0,33100.0,0.4]
[1609870405138,0.13632608,33101.0,33099.0,0.13632608]
[1609870407740,0.13632608,33101.0,33089.0,0.11119]
[1609870407940,0.13632608,33101.0,33061.0,4.4241]
[1609870408740,4.1009,33103.0,33086.0,0.13632608]
[1609870408940,4.1009,33103.0,33086.0,0.26459608]
[1609870410644,0.13632608,33091.0,33090.0,0.13632608]
[1609870412744,4.1009,33103.0,33090.0,0.13632608]
[1609870412943,0.2748,33107.0,33090.0,0.22752608]
[1609870413944,0.2748,33107.0,33090.0,0.13632608]
[1609870414745,0.2748,33107.0,33104.0,0.13632608]
[1609870416044,0.2748,33107.0,33094.0,0.12257]
[1609870416444,0.40703,33107.0,33082.0,3.7303]
[1609870416645,0.40703,33107.0,33096.0,0.13632608]
[1609870417246,0.40703,33107.0,33096.0,0.24542608]
[1609870417646,0.40703,33107.0,33097.0,0.0902]
[1609870417847,0.40703,33107.0,33096.0,0.24542608]
[1609870418646,0.40703,33107.0,33106.0,0.13632608]
[1609870420648,0.54335608,33107.0,33106.0,0.13632608]
[1609870420849,0.54335608,33107.0,33096.0,0.1091]
[1609870422251,0.54335608,33107.0,33078.0,0.0917]
[1609870422651,0.00703,33107.0,33092.0,0.13632608]
[1609870423053,5.545e-05,33116.0,33092.0,0.13632608]
[1609870423853,5.545e-05,33116.0,33091.0,0.12159]
[1609870424653,0.13632608,33092.0,33091.0,0.12159]
[1609870428055,0.13632608,33092.0,33088.0,0.13632608]
[1609870429256,0.11607,33106.0,33089.0,0.0912]
[1609870429456,0.11607,33106.0,33089.0,0.19493]
[1609870429858,0.19486641,33117.0,33089.0,0.19493]
[1609870430758,0.19486641,33117.0,33115.0,0.13632608]
[1609870432862,0.13638153,33116.0,33115.0,0.13632608]
[1609870433764,5.545e-05,33116.0,33115.0,0.13632608]
[1609870433966,5.545e-05,33116.0,33111.0,0.13095]
[1609870434764,0.13632608,33112.0,33111.0,0.13095]
[1609870436765,5.545e-05,33116.0,33111.0,0.13095]
[1609870438669,5.545e-05,33116.0,33107.0,0.0915]
[1609870438869,5.545e-05,33116.0,33107.0,0.22782608]
[1609870440769,5.545e-05,33116.0,33115.0,0.13632608]
[1609870440969,5.545e-05,33116.0,33115.0,0.22782608]
[1609870443170,5.545e-05,33116.0,33115.0,0.0915]
[1609870444769,5.545e-05,33116.0,33115.0,0.22782608]
[1609870444971,5.545e-05,33116.0,33115.0,0.13632608]
[1609870445874,5.545e-05,33116.0,33115.0,0.22732608]
[1609870446474,0.00724186,33117.0,33115.0,0.22732608]
[1609870447977,4.186e-05,33117.0,33115.0,0.22732608]
[1609870449378,0.01059671,33137.0,33115.0,0.22732608]
[1609870449578,0.66181775,33150.0,33116.0,1.5]
[1609870449977,0.59561775,33150.0,33116.0,1.5]
[1609870450178,0.80877712,33159.0,33128.0,4.9953]
[1609870450377,0.80877712,33159.0,33128.0,5.10449]
[1609870450980,0.80877712,33159.0,33158.0,0.13632608]
[1609870451378,0.80877712,33159.0,33158.0,0.22772608]
[1609870451578,0.18197712,33159.0,33158.0,4.22622608]
[1609870451780,0.80696777,33172.0,33158.0,4.22622608]
[1609870452379,0.07868641,33176.0,33158.0,4.22622608]
[1609870452778,0.07868641,33176.0,33159.0,0.0914]
[1609870452978,0.07868641,33176.0,33170.0,0.13632608]
[1609870453180,0.07868641,33176.0,33170.0,0.72742608]
[1609870454180,0.07868641,33176.0,33170.0,0.81702608]
[1609870454380,0.07868641,33176.0,33170.0,0.13632608]
[1609870454582,0.07868641,33176.0,33170.0,5.05772608]
[1609870455780,0.07868641,33176.0,33138.0,1.9471017]
[1609870456181,0.07868641,33176.0,33143.0,3.9172]
[1609870456581,0.14044545,33171.0,33143.0,3.9172]
[1609870456982,0.13632608,33159.0,33149.0,0.25488608]
[1609870457881,0.11842,33163.0,33149.0,0.25488608]
[1609870458481,0.14044545,33171.0,33149.0,0.25488608]
[1609870458884,0.14044545,33171.0,33156.0,0.13632608]
[1609870459084,0.14044545,33171.0,33156.0,0.22632608]
[1609870459282,0.14044545,33171.0,33156.0,0.32718608]
[1609870460084,0.14044545,33171.0,33156.0,0.10086]
[1609870460687,0.14044545,33171.0,33149.0,0.11856]
[1609870460889,0.13632608,33154.0,33153.0,0.13632608]
[1609870461689,0.14273,33158.0,33153.0,0.13632608]
[1609870462089,0.2809,33170.0,33153.0,0.13632608]
[1609870462689,0.2809,33170.0,33153.0,0.24622608]
[1609870462889,0.2809,33170.0,33165.0,0.13632608]
[1609870463089,0.2809,33170.0,33153.0,0.1099]
[1609870464196,0.2809,33170.0,33144.0,0.11043]
[1609870465593,0.87,33170.0,33144.0,0.11043]
[1609870466293,0.87,33170.0,33128.0,3.66979]
[1609870466591,0.2809,33170.0,33128.0,0.10919]
[1609870466791,0.2809,33170.0,33121.0,0.0914]
[1609870466992,0.2809,33170.0,33152.0,0.13632608]
[1609870467692,0.2809,33170.0,33139.0,0.10488]
[1609870467892,0.2809,33170.0,33131.0,0.09064]
[1609870468293,4.3555,33168.0,33131.0,0.09064]
[1609870468993,0.13632608,33132.0,33131.0,0.09064]
[1609870470197,0.12672,33150.0,33131.0,0.09064]
[1609870470400,0.12672,33150.0,33132.0,4.2768]
[1609870470597,2e-05,33150.0,33132.0,4.2768]
[1609870470997,0.13632608,33165.0,33149.0,0.13632608]
[1609870472199,0.13632608,33165.0,33150.0,4.6657]
[1609870472899,0.13632608,33165.0,33162.0,0.13632608]
[1609870473099,0.13632608,33165.0,33150.0,4.6657]
[1609870473300,0.13632608,33165.0,33156.0,0.11923]
[1609870474902,0.13632608,33165.0,33147.0,0.13345]
[1609870474903,0.13632608,33157.0,33147.0,0.13345]
[1609870476405,0.13632608,33157.0,33140.0,0.0916]
[1609870476905,0.13632608,33157.0,33152.0,0.13632608]
[1609870479008,0.13632608,33157.0,33147.0,0.14578]
[1609870481009,0.13632608,33157.0,33156.0,0.13632608]
[1609870482911,0.13632608,33165.0,33156.0,0.13632608]
[1609870483111,0.13632608,33165.0,33147.0,0.14578]
[1609870483311,0.13632608,33165.0,33148.0,0.0897]
[1609870483812,0.13632608,33165.0,33147.0,0.14578]
[1609870484013,0.13632608,33165.0,33146.0,0.0898]
[1609870484914,0.2957,33170.0,33158.0,0.13632608]
[1609870486915,0.13632608,33159.0,33158.0,0.13632608]
[1609870489521,0.13632608,33159.0,33154.0,0.09788]
[1609870490322,0.13632608,33159.0,33145.0,4.9723]
[1609870491020,0.13632608,33159.0,33158.0,0.13632608]
[1609870492622,0.2957,33170.0,33158.0,0.13632608]
[1609870493022,0.2957,33170.0,33165.0,0.13632608]
[1609870493423,0.2957,33170.0,33155.0,0.10505]
[1609870495025,0.2957,33170.0,33160.0,0.13632608]
[1609870495425,0.2957,33170.0,33155.0,0.10505]
[1609870496527,0.2957,33170.0,33148.0,0.09]
[1609870497128,0.2957,33170.0,33160.0,0.13632608]
[1609870499127,0.2957,33170.0,33169.0,0.13632608]
[1609870500130,0.2957,33170.0,33157.0,0.14116]
[1609870500928,0.2957,33170.0,33130.0,1.91262261]
[1609870500929,0.5707,33168.0,33130.0,1.91262261]
[1609870501129,0.5707,33168.0,33142.0,0.13632608]
[1609870501529,0.5707,33168.0,33137.0,0.12769]
[1609870502431,1.5,33167.0,33130.0,1.91262261]
[1609870502832,0.02784605,33164.0,33111.0,1.94378511]
[1609870503031,1.64873605,33164.0,33111.0,1.94378511]
[1609870503231,1.64873605,33164.0,33127.0,0.13632608]
[1609870503632,1.64873605,33164.0,33122.0,0.09728]
[1609870503833,3.4722,33149.0,33122.0,0.09728]
[1609870504033,1.5,33148.0,33122.0,0.09728]
[1609870504433,1.5,33148.0,33107.0,1.94975975]
[1609870504833,0.2837,33147.0,33107.0,1.94975975]
[1609870505034,4.3494,33135.0,33107.0,1.94975975]
[1609870505236,0.13632608,33120.0,33107.0,1.94975975]
[1609870505434,2.32898608,33120.0,33107.0,1.94975975]
[1609870505635,4.2469,33108.0,33104.0,2.11223973]
[1609870505836,4.34225,33108.0,33089.0,2.1205252]
[1609870506035,0.09535,33108.0,33089.0,2.1205252]
[1609870506236,4.0868,33097.0,33089.0,2.1205252]
[1609870506435,0.0904,33096.0,33089.0,2.1205252]
[1609870506836,0.0904,33096.0,33089.0,1.9663252]
[1609870507235,0.13632608,33090.0,33089.0,1.3251252]
[1609870507437,4.75525608,33090.0,33089.0,1.0521252]
[1609870507635,4.75525608,33090.0,33089.0,0.8608252]
[1609870508036,4.75525608,33090.0,33089.0,0.7624252]
[1609870508236,4.75525608,33090.0,33089.0,0.6913252]
[1609870508436,4.84585608,33090.0,33089.0,0.4670252]
[1609870508637,4.84585608,33090.0,33089.0,0.0534252]
[1609870508837,4.84585608,33090.0,33052.0,2.26133561]
[1609870509236,0.13632608,33053.0,33052.0,2.26133561]
[1609870509438,0.13632608,33053.0,33009.0,2.53067559]
[1609870509637,4.04272608,33053.0,33023.0,0.2869]
[1609870511041,4.04659909,33053.0,33023.0,0.2869]
[1609870511240,3.91027301,33053.0,33033.0,0.13632608]
[1609870512242,0.00379003,33050.0,33033.0,0.13632608]
[1609870512641,0.10280003,33050.0,33033.0,0.13632608]
[1609870512842,0.00378993,33049.0,33033.0,0.13632608]
[1609870513241,8.993e-05,33049.0,33048.0,0.13632608]
[1609870513641,8.993e-05,33049.0,33048.0,0.25230608]
[1609870513842,0.00920001,33055.0,33048.0,0.25230608]
[1609870515043,0.00912964,33081.0,33048.0,0.25230608]
[1609870515242,0.00912964,33081.0,33065.0,0.13632608]
[1609870515644,0.00912964,33081.0,33048.0,0.11598]
[1609870516043,4.7699,33073.0,33048.0,0.11598]
[1609870516442,4.87721,33073.0,33048.0,0.11598]
[1609870516642,4.87721,33073.0,33025.0,3.4589]
[1609870517243,4.87721,33073.0,33045.0,0.13632608]
[1609870517843,4.87721,33073.0,33038.0,0.12585]
[1609870519146,0.0907,33072.0,33038.0,0.12585]
[1609870519344,0.10731,33073.0,33044.0,0.13632608]
[1609870519745,0.00907643,33072.0,33044.0,0.13632608]
[1609870521158,0.00907643,33072.0,33071.0,0.13632608]
[1609870522354,0.00907643,33072.0,33064.0,0.13592]
[1609870522551,0.00907105,33092.0,33064.0,0.13592]
[1609870522757,0.28075185,33083.0,33064.0,0.13592]
[1609870523253,0.28075185,33083.0,33077.0,0.13632608]
[1609870523453,0.28075185,33083.0,33064.0,0.13592]
[1609870524250,0.28075185,33083.0,33046.0,4.2112]
[1609870525151,0.28075185,33083.0,33053.0,0.13632608]
[1609870525852,0.28075185,33083.0,33046.0,4.2112]
[1609870526453,0.28075185,33083.0,33038.0,0.12585]
[1609870526652,5.0643,33080.0,33022.0,0.2726]
[1609870527252,5.0643,33080.0,33040.0,0.13632608]
[1609870527652,1.5,33079.0,33020.0,3.6892]
[1609870527853,1.5916,33079.0,33014.0,0.2709]
[1609870528052,3.70167,33066.0,33014.0,0.2709]
[1609870528852,0.14287,33066.0,33014.0,0.2709]
[1609870529253,0.14287,33066.0,33033.0,0.13632608]
[1609870529953,0.0899,33065.0,33033.0,0.13632608]
[1609870530153,0.14287,33066.0,33033.0,0.13632608]
[1609870531254,0.14287,33066.0,33042.0,0.13632608]
[1609870533056,0.0897,33072.0,33042.0,0.13632608]
[1609870533256,0.13632608,33043.0,33042.0,0.13632608]
[1609870533659,0.24729608,33043.0,33042.0,0.13632608]
[1609870533856,0.24729608,33043.0,33019.0,0.12745]
[1609870535258,0.11097,33043.0,33038.0,0.13632608]
[1609870535959,0.2767,33067.0,33038.0,0.13632608]
[1609870537163,0.8047,33066.0,33019.0,0.12745]
[1609870537362,0.13632608,33035.0,33033.0,0.13632608]
[1609870537563,0.13632608,33035.0,33011.0,0.14676]
[1609870539267,0.13987,33041.0,33011.0,0.14676]
[1609870539468,3.9733,33028.0,33011.0,0.14676]
[1609870539667,4.10875,33028.0,33002.0,0.12079]
[1609870540367,0.13545,33028.0,32984.0,2.29859878]
[1609870540768,0.0909,33027.0,32985.0,0.2994]
[1609870540968,0.13545,33028.0,32985.0,0.2994]
[1609870541169,0.13545,33028.0,32989.0,0.1121]
[1609870541367,0.13632608,33014.0,32989.0,0.1121]
[1609870541570,0.27944608,33014.0,33013.0,1.221e-05]
[1609870542772,4.1729,32993.0,32989.0,0.1121]
[1609870542978,4.1729,32993.0,32991.0,1.96082753]
[1609870543170,0.11034,32997.0,32991.0,1.96082753]
[1609870543371,0.13632608,32992.0,32991.0,1.96082753]
[1609870544370,0.13632608,32992.0,32991.0,1.83312753]
[1609870544573,0.13632608,32992.0,32991.0,1.61172753]
[1609870545470,0.13632608,32992.0,32991.0,1.33832753]
[1609870546471,0.13632608,32992.0,32991.0,1.32322753]
[1609870547472,0.14312,33014.0,32991.0,1.32322753]
[1609870547877,0.45449036,33027.0,32991.0,1.32322753]
[1609870548275,4.7085,33024.0,32991.0,1.32322753]
[1609870549076,0.3721,33022.0,32991.0,1.32322753]
[1609870549274,0.13632608,32992.0,32991.0,1.32322753]
[1609870551376,0.13632608,33004.0,32991.0,1.45955361]
[1609870551579,0.13632608,33004.0,32991.0,1.57539361]
[1609870552278,0.10659,33012.0,32991.0,1.57539361]
[1609870552478,0.3721,33022.0,32991.0,1.57539361]
[1609870553290,0.0902,33021.0,33019.0,0.13632608]
[1609870553480,0.45409597,33056.0,33019.0,0.13632608]
[1609870554091,0.45409597,33056.0,33019.0,0.25049608]
[1609870554479,3.6586,33076.0,33019.0,0.25049608]
[1609870555380,3.6586,33076.0,33035.0,0.13632608]
[1609870556480,3.6586,33076.0,33029.0,0.1084]
[1609870556682,3.76266,33076.0,33029.0,0.1084]
[1609870556881,0.10406,33076.0,33029.0,0.1084]
[1609870557081,0.10406,33076.0,33030.0,5.0386]
[1609870557481,0.10406,33076.0,33058.0,0.13632608]
[1609870557682,0.13126206,33076.0,33058.0,0.13632608]
[1609870558283,0.10406,33076.0,33058.0,0.13632608]
[1609870559485,0.10406,33076.0,33049.0,0.10541]
[1609870560388,0.10406,33076.0,33040.0,0.14039]
[1609870561389,0.10406,33076.0,33054.0,0.13632608]
[1609870561588,0.02723941,33085.0,33054.0,0.13632608]
[1609870561790,0.0905,33084.0,33054.0,0.13632608]
[1609870561988,0.19803,33084.0,33054.0,0.13632608]
[1609870563392,0.13632608,33071.0,33070.0,0.13632608]
[1609870563591,0.25087608,33071.0,33070.0,0.13632608]
[1609870563993,0.91864691,33073.0,33070.0,0.13632608]
[1609870564397,1.0288625,33078.0,33070.0,0.13632608]
[1609870564398,0.00937427,33076.0,33070.0,0.13632608]
[1609870565396,0.00937427,33076.0,33075.0,0.13632608]
[1609870565596,0.26755054,33078.0,33075.0,0.13632608]
[1609870565997,0.79814517,33084.0,33075.0,0.13632608]
[1609870566196,0.66181909,33084.0,33075.0,0.13632608]
[1609870566798,0.66171517,33090.0,33075.0,0.13632608]
[1609870566999,0.66171517,33090.0,33076.0,0.0901]
[1609870567198,0.50961517,33090.0,33076.0,0.0901]
[1609870567399,0.66162517,33098.0,33089.0,0.13632608]
[1609870568197,0.57262517,33098.0,33089.0,0.13632608]
[1609870568601,0.91873415,33109.0,33089.0,0.13632608]
[1609870569401,0.91873415,33109.0,33098.0,0.13632608]
[1609870569602,0.91873415,33109.0,33084.0,0.14943]
[1609870569802,0.91662963,33114.0,33084.0,0.14943]
[1609870570806,0.91660217,33113.0,33084.0,0.14943]
[1609870571004,1.05628217,33113.0,33088.0,4.1097]
[1609870571404,1.05628217,33113.0,33112.0,0.13632608]
[1609870572014,0.13968,33113.0,33112.0,0.13632608]
[1609870572605,0.91587382,33120.0,33112.0,0.13632608]